Workbook

Sheet Avalia Projeto
B2: Taxa = | C2: 0.01 | F2: n = | G2: =MAX(A7:A106) -> 12 | I2: Valor Presente Líquido
A3: Macros: | B3: Limpa dados (Ctrl-L) | D3: Exemplo (Ctrl-E) | I3: VPL= | J3: =G5-C5 -> 139073.1355
B4: Investimentos | F4: Receitas
C5: =SUM(C7:C106) -> 16130105.88 | D5: =SUM(D7:D106) -> 18175807.04 | G5: =SUM(G7:G106) -> 16269179.02 | H5: =SUM(H7:H106) -> 18332518.13 | I5: Valor Futuro Líquido
A6: Mês | B6: Valor | C6: Mês 0 | D6: Mês n | F6: Valor | G6: Mês 0 | H6: Mês n | I6: VFL= | J6: =H5-D5 -> 156711.0901
A7: 0 | B7: 500000 | C7: =IF(A7="","",B7/(1+$C$2)^A7) -> 500000 | D7: =IF(A7="","",B7*(1+$C$2)^($G$2-A7)) -> 563412.5151 | G7: =IF(A7="","",F7/(1+$C$2)^A7) -> 0 | H7: =IF(A7="","",F7*(1+$C$2)^($G$2-A7)) -> 0
A8: 1 | B8: 1234000 | C8: 1221782.178 | D8: =IF(A8="","",B8*(1+$C$2)^($G$2-A8)) -> 1376734.74 | G8: 0 | H8: =IF(A8="","",F8*(1+$C$2)^($G$2-A8)) -> 0 | I8: Razão Benefício/Custo
A9: 2 | B9: 1649243 | C9: 1616746.397 | D9: 1821790.308 | G9: 0 | H9: 0 | I9: B/C= | J9: =IF(A7="",0,IF(C5=0,0,G5/C5)) -> 1.00862196
A10: 3 | B10: 439500 | C10: 426574.37 | D10: 480674.6773 | F10: 4380000 | G10: 4251184.848 | H10: 4790341.494
A11: 4 | B11: 280000 | C11: 269074.4965 | D11: 303199.8776 | G11: 0 | H11: 0 | I11: Valor Esperado da Terra
A12: 5 | B12: 1987540 | C12: 1891076.113 | D12: 2130911.898 | G12: 0 | H12: 0 | I12: VET= | J12: =IF(A7="",0,IF(C2=0,0,(H5-D5)/((1+C2)^G2-1))) -> 1235647.962
A13: 6 | B13: 2803713.1 | C13: 2641224.567 | D13: 2976197.952 | F13: 4380000 | G13: 4126158.13 | H13: 4649458.26
A14: 7 | B14: 659250 | C14: 614894.3776 | D14: 692878.3755 | G14: 0 | H14: 0 | I14: VPL Anualizado
A15: 8 | B15: 1391278 | C15: 1284821.891 | D15: 1447769.466 | G15: 0 | H15: 0 | I15: VPLA= | J15: =IF(G2=0,0,IF(C2=0,0,((H5-D5)*C2)/((1+C2)^G2-1))) -> 12356.47962
A16: 9 | B16: 1962599.17 | C16: 1794482.58 | D16: 2022067.887 | F16: 4380000 | G16: 4004808.43 | H16: 4512718.38
A17: 10 | B17: 461475 | C17: 417767.2974 | D17: 470750.6475 | G17: 0 | H17: 0
A18: 11 | B18: 3654870 | C18: 3275946.665 | D18: 3691418.7 | G18: 0 | H18: 0
A19: 12 | B19: 198000 | C19: 175714.9466 | D19: 198000 | F19: 4380000 | G19: 3887027.607 | H19: 4380000
D24: =IF(A24="","",B24*(1+$C$2)^($G$2-A24)) ->  | H24: =IF(A24="","",F24*(1+$C$2)^($G$2-A24)) -> 
C39: =IF(A39="","",B39/(1+$C$2)^A39) ->  | G39: =IF(A39="","",F39/(1+$C$2)^A39) -> 
D40: =IF(A40="","",B40*(1+$C$2)^($G$2-A40)) ->  | H40: =IF(A40="","",F40*(1+$C$2)^($G$2-A40)) -> 
D56: =IF(A56="","",B56*(1+$C$2)^($G$2-A56)) ->  | H56: =IF(A56="","",F56*(1+$C$2)^($G$2-A56)) -> 
C71: =IF(A71="","",B71/(1+$C$2)^A71) ->  | G71: =IF(A71="","",F71/(1+$C$2)^A71) -> 
D72: =IF(A72="","",B72*(1+$C$2)^($G$2-A72)) ->  | H72: =IF(A72="","",F72*(1+$C$2)^($G$2-A72)) -> 
D88: =IF(A88="","",B88*(1+$C$2)^($G$2-A88)) ->  | H88: =IF(A88="","",F88*(1+$C$2)^($G$2-A88)) -> 
D104: =IF(A104="","",B104*(1+$C$2)^($G$2-A104)) ->  | H104: =IF(A104="","",F104*(1+$C$2)^($G$2-A104)) -> 
D105: =IF(A105="","",B105*(1+$C$2)^($G$2-A105)) ->  | H105: =IF(A105="","",F105*(1+$C$2)^($G$2-A105)) -> 
D106: =IF(A106="","",B106*(1+$C$2)^($G$2-A106)) ->  | H106: =IF(A106="","",F106*(1+$C$2)^($G$2-A106)) -> 
